lending/lending_fUSD_20240705
["ID","MTS","AMOUNT","RATE_DAILY","PERIOD"]
[331219970,1720140635013,-247.95,0.00013374,2]
[331219971,1720140635023,-247.95,0.00013378,2]
[331219972,1720140635033,-247.95,0.00013381,2]
[331219973,1720140635043,-247.95,0.00013385,2]
[331219974,1720140635053,-247.95,0.00013388,2]
[331219975,1720140635062,-247.95,0.00013392,2]
[331219976,1720140635072,-247.95,0.00013395,2]
[331219977,1720140635082,-247.95,0.00013399,2]
[331219978,1720140635091,-247.95,0.00013402,2]
[331219979,1720140635102,-247.95,0.00013406,2]
[331219980,1720140635111,-150.0,0.00013406,2]
[331219981,1720140635122,-247.95,0.00013409,2]
[331219982,1720140635132,-247.95,0.00013413,2]
[331219983,1720140635141,-247.95,0.00013416,2]
[331219984,1720140635151,-247.95,0.0001342,2]
[331219985,1720140635161,-247.95,0.00013423,2]
[331219986,1720140635171,-247.95,0.00013427,2]
[331219987,1720140635189,-1284.2871572,0.00013472,2]
[331219988,1720140635199,-276.11934934,0.00013574,2]
[331219990,1720140635210,-307.88069932,0.00013574,2]
[331219992,1720140635219,-723.49825474,0.00013574,2]
[331219994,1720140635229,-155.0,0.00013574,2]
[331219996,1720140635239,-3207.735,0.00013576,2]
[331219998,1720140635249,-794.26,0.00013699,2]
[331220000,1720140635259,-643.84,0.00013699,2]
[331220001,1720140635268,-169.87,0.00013699,2]
[331220002,1720140635278,-1852.42,0.00013722,2]
[331220003,1720140635287,-14817.40419422,0.00013736,2]
[331220004,1720140635298,-420.0,0.00013785,2]
[331220005,1720140635307,-199.01075441,0.0001387,2]
[331220006,1720140635321,-811.54641873,0.0001387,2]
[331220007,1720140635333,-621.77146932,0.0001387,2]
[331220008,1720140635345,-883.97785601,0.0001387,2]
[331220009,1720140635356,-450.25,0.0001387,2]
[331220010,1720140635368,-2015.29501095,0.0001387,2]
[331220011,1720140635382,-404.0,0.0001387,2]
[331220012,1720140635393,-506.35987499,0.0001387,2]
[331220013,1720140635403,-220.24,0.0001389,3]
[331220014,1720140635413,-20.96282601,0.000139,2]
[331220015,1720140635443,-1585.40609451,0.000139,2]
[331220016,1720140635452,-297.16392936,0.000139,2]
[331220017,1720140635462,-164.95819459,0.000139,2]
[331220018,1720140635472,-275.0502675,0.000139,2]
[331220019,1720140635483,-114.57064403,0.000139,2]
[331220036,1720140640664,-437.69795218,0.00013543,2]
[331220040,1720140640674,-250.47708247,0.00013543,2]
[331220044,1720140640691,-4997.03668041,0.000139,2]
[331220047,1720140640701,-320.98963975,0.000139,2]
[331220052,1720140640712,-437.078,0.000139,2]
[331220056,1720140640722,-2676.82821218,0.0001398,2]
[331220060,1720140640732,-196.34415124,0.0001399,2]
[331220063,1720140640742,-1000.0,0.00013999,2]
[331220066,1720140640752,-150.0,0.00013999,2]
[331220069,1720140640763,-171.09276226,0.00013999,2]
[331220071,1720140640773,-423.48800702,0.00013999,2]
[331220073,1720140640784,-226.84984232,0.00013999,2]
[331220076,1720140640797,-96.33134602,0.00013999,2]
[331220078,1720140640807,-500.0,0.00013999,2]
[331220080,1720140640818,-500.0,0.00013999,2]
[331220082,1720140640828,-500.0,0.00013999,2]
[331220084,1720140640839,-500.0,0.00013999,2]
[331220086,1720140640849,-29.01467635,0.00013999,2]
[331220088,1720140640861,-158.37888053,0.00013999,2]
[331220090,1720140640871,-225.92270396,0.00014,2]
[331220092,1720140640882,-3558.25409845,0.00014,2]
[331220093,1720140640895,-3426.85472011,0.00014,2]
[331220094,1720140640906,-405.79384232,0.00014,2]
[331220096,1720140640918,-5114.17852271,0.00014,2]
[331220099,1720140640936,-342.15773204,0.00014,2]
[331220101,1720140640948,-1288.14338783,0.00014,2]
[331220102,1720140640961,-62920.62738548,0.00014,2]
[331220103,1720140640974,-1703.41591,0.00014,2]
[331220104,1720140640986,-50045.45664028,0.00014,2]
[331220105,1720140640998,-308.66866659,0.00014,2]
[331220108,1720140641059,-104256.38777488,0.00014,2]
[331220112,1720140641076,-4098525.76074254,0.00014,2]
[331220115,1720140641086,-182.71534158,0.00014,2]
[331220117,1720140641095,-200.93021936,0.00014,2]
[331220120,1720140641104,-158.91,0.00014065,2]
[331220121,1720140641114,-272.05,0.00014095,2]
[331220123,1720140641124,-1000.0,0.00014125,2]
[331220125,1720140641133,-209.14528895,0.00014303,2]
[331220127,1720140641143,-158.86009896,0.00014303,2]
[331220129,1720140641153,-297.60689096,0.00014303,2]
[331220131,1720140641163,-196.93,0.00014336,2]
[331220133,1720140641173,-5111.60732436,0.00014717,2]
[331220135,1720140641190,-213.69,0.00014852,2]
[331220159,1720140641420,-602861.81310402,0.00015,2]
[331220161,1720140641438,-1606.36892049,0.000151,2]
[331220163,1720140641448,-587.0,0.00015124,2]
[331220165,1720140641458,-622.66,0.00015158,2]
[331220167,1720140641468,-655.0,0.000153,2]
[331220169,1720140641481,-5111.60732436,0.00015535,2]
[331220171,1720140641491,-272.05,0.00015661,2]
[331220173,1720140641501,-1000.0,0.00015694,2]
[331220175,1720140641513,-503.22170002,0.00016116,2]
[331220177,1720140641526,-1606.36892049,0.000163,2]
[331220179,1720140641536,-5111.60732436,0.00016352,2]
[331220181,1720140641545,-823.0,0.00016593,2]
[331220183,1720140641555,-615.0,0.00017049,2]
[331220185,1720140641564,-382.927,0.00017049,2]
[331220187,1720140641574,-280.442,0.00017049,2]
[331220189,1720140641584,-5111.60732436,0.00017169,2]
[331220191,1720140641593,-272.05,0.00017227,2]
[331220193,1720140641603,-1000.0,0.00017263,2]
[331220195,1720140641612,-622.66,0.00017422,2]
[331220197,1720140641622,-1606.36892049,0.000175,2]
[331220199,1720140641631,-1000.0,0.00017808,2]
[331220201,1720140641640,-1000.0,0.00017808,2]
[331220203,1720140641650,-1000.0,0.00017808,2]
[331220205,1720140641659,-1000.0,0.00017808,2]
[331220207,1720140641668,-1000.0,0.00017808,2]
[331220209,1720140641685,-1000.0,0.00017808,2]
[331220211,1720140641694,-1000.0,0.00017808,2]
[331220213,1720140641704,-1000.0,0.00017808,2]
[331220215,1720140641713,-1000.0,0.00017808,2]
[331220217,1720140641722,-1000.0,0.00017808,2]
[331220218,1720140641732,-1000.0,0.00017808,2]
[331220221,1720140641741,-1000.0,0.00017808,2]
[331220223,1720140641751,-1000.0,0.00017808,2]
[331220225,1720140641760,-1000.0,0.00017808,2]
[331220226,1720140641769,-1000.0,0.00017808,2]
[331220228,1720140641779,-1000.0,0.00017808,2]
[331220230,1720140641788,-1000.0,0.00017808,2]
[331220232,1720140641798,-1000.0,0.00017808,2]
[331220234,1720140641807,-1000.0,0.00017808,2]
[331220236,1720140641816,-1000.0,0.00017808,2]
[331220238,1720140641826,-1000.0,0.00017808,2]
[331220240,1720140641835,-1000.0,0.00017808,2]
[331220242,1720140641844,-1000.0,0.00017808,2]
[331220244,1720140641854,-1000.0,0.00017808,2]
[331220246,1720140641863,-1000.0,0.00017808,2]
[331220249,1720140641873,-1000.0,0.00017808,2]
[331220250,1720140641883,-1000.0,0.00017808,2]
[331220252,1720140641892,-1000.0,0.00017808,2]
[331220254,1720140641902,-1000.0,0.00017808,2]
[331220256,1720140641911,-1000.0,0.00017808,2]
[331220258,1720140641921,-1000.0,0.00017808,2]
[331220261,1720140641937,-1000.0,0.00017808,2]
[331220263,1720140641947,-621.0,0.00017808,2]
[331220264,1720140641957,-213.69,0.00017823,2]
[331220266,1720140641967,-5111.60732436,0.00017986,2]
[331220269,1720140641976,-556.6128727,0.00018,2]
[331220271,1720140641986,-297.16392934,0.0001815,2]
[331220273,1720140641995,-1152.0,0.00018205,2]
[331220275,1720140642005,-1606.36892049,0.000187,2]
[331220277,1720140642014,-272.05,0.00018793,2]
[331220279,1720140642023,-5111.60732436,0.00018804,2]
[331220281,1720140642033,-1000.0,0.00018833,2]
[331220283,1720140642042,-161.25,0.00018849,30]
[331220285,1720140642051,-152.99,0.000189,2]
[331220287,1720140642060,-152.99,0.000189,2]
[331220289,1720140642069,-152.99,0.000189,2]
[331220291,1720140642079,-152.99,0.000189,2]
[331220292,1720140642088,-152.99,0.000189,2]
[331220294,1720140642097,-2728.54098825,0.00019,2]
[331220296,1720140642107,-1250.0,0.00019,2]
[331220298,1720140642116,-850.0,0.00019123,2]
[331220300,1720140642126,-2782.38,0.00019178,2]
[331220302,1720140642136,-250.0,0.00019178,2]
[331220304,1720140642146,-794.26,0.00019178,2]
[331220306,1720140642155,-166.86,0.0001918,2]
[331220308,1720140642164,-166.86,0.0001918,2]
[331220310,1720140642174,-166.86,0.0001918,2]
[331220312,1720140642187,-166.86,0.0001918,2]
[331220314,1720140642196,-166.86,0.0001918,2]
[331220316,1720140642205,-166.86,0.0001918,2]
[331220318,1720140642215,-25530.17,0.00019239,2]
[331220320,1720140642225,-305.56742136,0.00019352,2]
[331220322,1720140642235,-622.66,0.00019686,2]
[331220324,1720140642244,-152.99,0.0001989,2]
[331220326,1720140642253,-2854.07101433,0.00019899,2]
[331220328,1720140642263,-281271.029274,0.000199,3]
[331220330,1720140642272,-1606.36892049,0.000199,2]
[331220332,1720140642282,-1520.0,0.00019974,2]
[331220334,1720140642292,-5062.75451632,0.00019997,2]
[331220336,1720140642301,-155.3092856,0.0002,2]
[331220338,1720140642311,-3740.02851448,0.0002,4]
[331220340,1720140642321,-155.0,0.0002,2]
[331220342,1720140642330,-197.33,0.00020552,2]
[331220344,1720140642340,-8433.83853515,0.0002068,2]
[331220346,1720140642349,-1000.0,0.000207,2]
[331220348,1720140642359,-9106.52345153,0.0002087,2]
[331220350,1720140642369,-12086.20567883,0.00020997,3]
[331220352,1720140642379,-1010.70765723,0.00021,2]
[331220354,1720140642388,-186.529672,0.00021018,2]
[331220356,1720140642398,-522.145694,0.00021018,2]
[331220358,1720140642408,-260.087137,0.00021018,2]
[331220360,1720140642418,-150.896188,0.00021018,2]
[331220362,1720140642431,-196.80649,0.00021018,2]
[331220365,1720140642441,-2331.015579,0.00021018,2]
[331220367,1720140642450,-1606.36892049,0.000211,2]
[331220369,1720140642460,-243.27035336,0.00021221,2]
[331220371,1720140642469,-522.145694,0.0002128,2]
[331220373,1720140642480,-260.087137,0.0002128,2]
[331220375,1720140642489,-150.896188,0.0002128,2]
[331220377,1720140642499,-2331.015579,0.0002128,2]
[331220379,1720140642509,-186.529672,0.00021368,2]
[331220381,1720140642520,-180.0,0.00021397,2]
[331220383,1720140642533,-226.3096087,0.00021478,2]
[331220384,1720140642543,-522.145694,0.00021543,2]
[331220385,1720140642552,-260.087137,0.00021543,2]
[331220386,1720140642561,-150.896188,0.00021543,2]
[331220387,1720140642570,-2331.015579,0.00021543,2]
[331220388,1720140642579,-117021.9126,0.0002167,2]
[331220389,1720140642587,-342.3565,0.0002167,2]
[331220390,1720140642598,-342.2423,0.000217,2]
[331220391,1720140642607,-186.529672,0.00021718,2]
[331220392,1720140642616,-500.0,0.00021742,2]
[331220393,1720140642625,-200.0,0.00021742,2]
[331220394,1720140642634,-522.145694,0.00021806,2]
[331220395,1720140642643,-260.087137,0.00021806,2]
[331220396,1720140642653,-150.896188,0.00021806,2]
[331220397,1720140642662,-2331.015579,0.00021806,2]
[331220398,1720140642671,-584.0,0.00021816,2]
[331220399,1720140642685,-6178.6022,0.00021817,2]
[331220401,1720140642695,-3077.7619,0.00021817,2]
[331220403,1720140642704,-5625.043,0.00021817,2]
[331220405,1720140642714,-150.08660108,0.00021817,2]
[331220407,1720140642724,-12768.60419298,0.0002186,3]
[331220409,1720140642734,-491.0,0.000219,4]
[331220411,1720140642743,-257.0,0.000219,2]
[331220413,1720140642753,-152.99,0.00021907,2]
[331220415,1720140642762,-43932.87451773,0.00021909,2]
[331220418,1720140642777,-109.15651567,0.00021909,2]
[331220420,1720140642787,-561.15678049,0.00021916,2]
[331220422,1720140642799,-568.22236691,0.00021916,2]
[331220424,1720140642811,-2044.0207635,0.00021916,2]
[331220426,1720140642820,-408.07543191,0.00021916,5]
[331220428,1720140642830,-209.15726111,0.00021916,2]
[331220430,1720140642840,-1000.0,0.00021916,2]
[331220432,1720140642850,-500.0,0.00021917,4]
[331220434,1720140642860,-500.0,0.00021917,4]
[331220436,1720140642870,-500.0,0.00021917,4]
[331220438,1720140642880,-269.50805052,0.00021917,4]
[331220440,1720140642890,-1016.98,0.00021917,4]
[331220442,1720140642899,-1016.98,0.00021917,4]
[331220445,1720140642909,-1016.98,0.00021917,4]
[331220448,1720140642919,-1016.98,0.00021917,4]
[331220450,1720140642931,-1016.98,0.00021917,4]
[331220453,1720140642941,-1016.98,0.00021917,4]
[331220456,1720140642950,-1016.98,0.00021917,4]
[331220459,1720140642960,-345.45691997,0.00021917,4]
[331220462,1720140642976,-671.52308003,0.00021917,4]
[331220464,1720140642986,-3.87760485,0.00021917,4]
[331220467,1720140642998,-743.58141873,0.00021917,4]
[331220469,1720140643010,-269.52097642,0.00021917,4]
[331220471,1720140643019,-133.94915057,0.00021917,4]
[331220474,1720140643032,-883.03084943,0.00021917,4]
[331220477,1720140643041,-1016.98,0.00021917,4]
[331220480,1720140643051,-1016.98,0.00021917,4]
[331220483,1720140643061,-1016.98,0.00021917,4]
[331220486,1720140643070,-1016.98,0.00021917,4]
[331220489,1720140643080,-1016.98,0.00021917,4]
[331220492,1720140643089,-1016.98,0.00021917,4]
[331220495,1720140643100,-768.98,0.00021917,4]
[331220498,1720140643109,-768.98,0.00021917,4]
[331220501,1720140643119,-768.98,0.00021917,4]
[331220504,1720140643129,-768.98,0.00021917,4]
[331220507,1720140643139,-768.98,0.00021917,4]
[331220510,1720140643148,-768.98,0.00021917,4]
[331220513,1720140643158,-768.98,0.00021917,4]
[331220516,1720140643168,-768.98,0.00021917,4]
[331220519,1720140643181,-768.98,0.00021917,4]
[331220522,1720140643191,-768.98,0.00021917,4]
[331220524,1720140643201,-768.98,0.00021917,4]
[331220526,1720140643210,-147.75960862,0.00021917,4]
[331220529,1720140643226,-444.56443985,0.00021917,4]
[331220531,1720140643237,-176.65595153,0.00021917,4]
[331220533,1720140643247,-768.98,0.00021917,4]
[331220535,1720140643256,-768.98,0.00021917,4]
[331220537,1720140643266,-768.98,0.00021917,4]
[331220539,1720140643275,-768.98,0.00021917,4]
[331220541,1720140643285,-500.0,0.00021917,4]
[331220543,1720140643295,-496.15969048,0.00021917,4]
[331220545,1720140643303,-2883.09,0.00021917,4]
[331220547,1720140643312,-2883.09,0.00021917,4]
[331220549,1720140643322,-2883.09,0.00021917,4]
[331220551,1720140643331,-2883.09,0.00021917,4]
[331220553,1720140643340,-133.97062543,0.00021917,4]
[331220556,1720140643355,-2749.11937457,0.00021917,4]
[331220558,1720140643364,-2883.09,0.00021917,4]
[331220560,1720140643373,-2883.09,0.00021917,4]
[331220562,1720140643382,-2883.09,0.00021917,4]
[331220564,1720140643392,-2883.09,0.00021917,4]
[331220566,1720140643401,-2883.09,0.00021917,4]
[331220568,1720140643411,-500.0,0.00021917,4]
[331220570,1720140643420,-500.0,0.00021917,4]
[331220571,1720140643432,-2164.34481862,0.00021917,4]
[331220577,1720140643446,-718.74518138,0.00021917,4]
[331220583,1720140643455,-2404.45011423,0.00021917,4]
[331220588,1720140643467,-478.63988577,0.00021917,4]
[331220593,1720140643479,-2342.71222801,0.00021917,4]
[331220598,1720140643491,-540.37777199,0.00021917,4]
[331220603,1720140643500,-1307.06215601,0.00021917,4]
[331220608,1720140643515,-1576.02784399,0.00021917,4]
[331220612,1720140643530,-2883.09,0.00021917,4]
[331220616,1720140643540,-2561.22919716,0.00021917,4]
[331220621,1720140643553,-321.86080284,0.00021917,4]
[331220623,1720140643562,-179.614179,0.00021917,2]
[331220627,1720140643573,-72.26701829,0.00021917,4]
[331220688,1720140643850,-810.1174949,0.00021917,4]
[331220691,1720140643862,-335.775,0.00021917,4]
[331220695,1720140643873,-710.95025,0.00021917,4]
[331220698,1720140643885,-175.17023681,0.00021917,4]
[331220700,1720140643894,-2104.28,0.00021917,4]
[331220702,1720140643903,-2104.28,0.00021917,4]
[331220704,1720140643913,-2104.28,0.00021917,4]
[331220706,1720140643922,-2104.28,0.00021917,4]
[331220708,1720140643935,-2104.28,0.00021917,4]
[331220711,1720140643945,-2104.28,0.00021917,4]
[331220713,1720140643954,-2104.28,0.00021917,4]
[331220715,1720140643964,-2104.28,0.00021917,4]
[331220717,1720140643974,-2104.28,0.00021917,4]
[331220719,1720140643983,-2104.28,0.00021917,4]
[331220721,1720140643993,-2104.28,0.00021917,4]
[331220723,1720140644002,-2104.28,0.00021917,4]
[331220725,1720140644011,-2104.28,0.00021917,4]
[331220727,1720140644021,-2104.28,0.00021917,4]
[331220729,1720140644030,-2104.28,0.00021917,4]
[331220731,1720140644039,-500.0,0.00021917,4]
[331220733,1720140644048,-500.0,0.00021917,4]
[331220735,1720140644057,-500.0,0.00021917,4]
[331220737,1720140644067,-500.0,0.00021917,4]
[331220756,1720140644236,-500.0,0.00021917,4]
[331220758,1720140644246,-500.0,0.00021917,4]
[331220760,1720140644256,-500.0,0.00021917,4]
[331220762,1720140644266,-317.391291,0.00021917,4]
[331220764,1720140644276,-500.0,0.00021917,4]
[331220766,1720140644286,-516.85705509,0.00021917,4]
[331220769,1720140644296,-749.33,0.00021917,4]
[331220770,1720140644305,-749.33,0.00021917,4]
[331220773,1720140644315,-749.33,0.00021917,4]
[331220775,1720140644325,-749.33,0.00021917,4]
[331220777,1720140644335,-749.33,0.00021917,4]
[331220779,1720140644344,-749.33,0.00021917,4]
[331220781,1720140644354,-749.33,0.00021917,4]
[331220783,1720140644363,-749.33,0.00021917,4]
[331220785,1720140644372,-749.33,0.00021917,4]
[331220787,1720140644381,-749.33,0.00021917,4]
[331220789,1720140644390,-749.33,0.00021917,4]
[331220791,1720140644400,-749.33,0.00021917,4]
[331220793,1720140644409,-749.33,0.00021917,4]
[331220795,1720140644419,-749.33,0.00021917,4]
[331220797,1720140644431,-453.7534476,0.00021917,4]
[331220800,1720140644452,-295.5765524,0.00021917,4]
[331220802,1720140644461,-749.33,0.00021917,4]
[331220804,1720140644470,-500.0,0.00021917,4]
[331220806,1720140644480,-500.0,0.00021917,4]
[331220808,1720140644492,-500.0,0.00021917,4]
[331220810,1720140644501,-35451.73,0.00021917,4]
[331220812,1720140644512,-35451.73,0.00021917,4]
[331220814,1720140644523,-469.58957641,0.00021917,4]
[331220816,1720140644533,-35451.73,0.00021917,4]
[331220818,1720140644542,-35451.73,0.00021917,4]
[331220820,1720140644551,-33042.89018657,0.00021917,4]
[331220822,1720140644566,-1899.99999999,0.00021917,4]
[331220825,1720140644577,-265.1286,0.00021917,4]
[331220827,1720140644587,-243.71121344,0.00021917,4]
[331220829,1720140644596,-1053.39099851,0.00021917,4]
[331220831,1720140644609,-34398.33900149,0.00021917,4]
[331220833,1720140644619,-31947.69017707,0.00021917,4]
[331220835,1720140644631,-703.00596169,0.00021917,4]
[331220837,1720140644642,-413.7332465,0.00021917,4]
[331220839,1720140644654,-1058.18044309,0.00021917,4]
[331220842,1720140644665,-1009.71667059,0.00021917,4]
[331220855,1720140644790,-266.99655833,0.00021917,4]
[331220858,1720140644802,-52.40694273,0.00021917,4]
[331220860,1720140644811,-447.59305727,0.00021917,4]
[331220862,1720140644822,-5409.99999,0.00021917,4]
[331220864,1720140644834,-1048.0,0.00021917,4]
[331220866,1720140644845,-344.28929195,0.00021917,4]
[331220869,1720140644857,-3448.14804575,0.00021917,4]
[331220871,1720140644868,-6292.37526798,0.00021917,4]
[331220873,1720140644879,-5898.56147334,0.00021917,4]
[331220875,1720140644890,-12562.76287371,0.00021917,4]
[331220878,1720140644901,-151.0,0.00021917,2]
[331220880,1720140644910,-35451.73,0.00021917,4]
[331220882,1720140644920,-35451.73,0.00021917,4]
[331220884,1720140644933,-500.0,0.00021917,4]
[331220886,1720140644942,-500.0,0.00021917,4]
[331220888,1720140644951,-500.0,0.00021917,4]
[331220889,1720140644960,-35451.73,0.00021917,4]
[331220891,1720140644970,-500.0,0.00021917,4]
[331220894,1720140644979,-500.0,0.00021917,4]
[331220896,1720140644989,-35451.73,0.00021917,4]
[331220898,1720140644999,-504.91922869,0.00021917,4]
[331220899,1720140645008,-500.0,0.00021917,4]
[331220902,1720140645018,-500.0,0.00021917,4]
[331220904,1720140645028,-500.0,0.00021917,4]
[331220905,1720140645036,-500.0,0.00021917,4]
[331220908,1720140645047,-35451.73,0.00021917,4]
[331220910,1720140645056,-504.2146846,0.00021917,4]
[331220912,1720140645066,-27282.90981776,0.00021917,4]
[331220914,1720140645082,-8168.82018224,0.00021917,4]
[331220916,1720140645092,-500.0,0.00021917,4]
[331220918,1720140645102,-35451.73,0.00021917,4]
[331220920,1720140645111,-35451.73,0.00021917,4]
[331220922,1720140645121,-1827.26,0.00021917,4]
[331220925,1720140645131,-1827.26,0.00021917,4]
[331220926,1720140645141,-1827.26,0.00021917,4]
[331220928,1720140645150,-1827.26,0.00021917,4]
[331220930,1720140645159,-1827.26,0.00021917,4]
[331220932,1720140645168,-1827.26,0.00021917,4]
[331220935,1720140645183,-1827.26,0.00021917,4]
[331220936,1720140645193,-1827.26,0.00021917,4]
[331220938,1720140645202,-1827.26,0.00021917,4]
[331220940,1720140645211,-1827.26,0.00021917,4]
[331220942,1720140645220,-1827.26,0.00021917,4]
[331220944,1720140645230,-1827.26,0.00021917,4]
[331220946,1720140645239,-1827.26,0.00021917,4]
[331220948,1720140645248,-1827.26,0.00021917,4]
[331220950,1720140645257,-151.0,0.00021917,2]
[331220952,1720140645266,-1827.26,0.00021917,4]
[331220954,1720140645276,-1827.26,0.00021917,4]
[331220956,1720140645285,-500.0,0.00021917,4]
[331220958,1720140645294,-241.786989,0.00021917,2]
[331220960,1720140645304,-500.0,0.00021917,4]
[331220962,1720140645313,-500.0,0.00021917,4]
[331220964,1720140645322,-500.0,0.00021917,4]
[331220966,1720140645331,-500.0,0.00021917,4]
[331220968,1720140645340,-453.9559437,0.00021917,4]
[331220970,1720140645349,-721.0,0.00021917,4]
[331220972,1720140645359,-721.0,0.00021917,4]
[331220974,1720140645369,-721.0,0.00021917,4]
[331220976,1720140645378,-721.0,0.00021917,4]
[331220978,1720140645388,-721.0,0.00021917,4]
[331220980,1720140645397,-721.0,0.00021917,4]
[331220982,1720140645407,-721.0,0.00021917,4]
[331220984,1720140645416,-721.0,0.00021917,4]
[331220986,1720140645425,-721.0,0.00021917,4]
[331220988,1720140645438,-721.0,0.00021917,4]
[331220990,1720140645448,-721.0,0.00021917,4]
[331220992,1720140645458,-721.0,0.00021917,4]
[331220995,1720140645467,-500.0,0.00021917,4]
[331220997,1720140645477,-721.0,0.00021917,4]
[331220998,1720140645490,-721.0,0.00021917,4]
[331221000,1720140645499,-500.0,0.00021917,4]
[331221002,1720140645509,-721.0,0.00021917,4]
[331221004,1720140645523,-721.0,0.00021917,4]
[331221006,1720140645536,-500.0,0.00021917,4]
[331221009,1720140645546,-500.0,0.00021917,4]
[331221010,1720140645556,-1184.61,0.00021917,4]
[331221013,1720140645566,-1184.61,0.00021917,4]
[331221015,1720140645577,-1184.61,0.00021917,4]
[331221017,1720140645587,-1184.61,0.00021917,4]
[331221019,1720140645596,-1184.61,0.00021917,4]
[331221020,1720140645606,-1184.61,0.00021917,4]
[331221022,1720140645615,-1184.61,0.00021917,4]
[331221024,1720140645625,-1184.61,0.00021917,4]
[331221026,1720140645634,-1184.61,0.00021917,4]
[331221028,1720140645644,-1184.61,0.00021917,4]
[331221031,1720140645654,-1184.61,0.00021917,4]
[331221033,1720140645663,-500.0,0.00021917,4]
[331221035,1720140645672,-1184.61,0.00021917,4]
[331221036,1720140645686,-1184.61,0.00021917,4]
[331221037,1720140645696,-1184.61,0.00021917,4]
[331221038,1720140645707,-1184.61,0.00021917,4]
[331221039,1720140645717,-1184.61,0.00021917,4]
[331221040,1720140645726,-500.0,0.00021917,4]
[331221041,1720140645736,-151.0,0.00021917,2]
[331221042,1720140645747,-500.0,0.00021917,4]
[331221043,1720140645757,-500.0,0.00021917,4]
[331221044,1720140645766,-500.0,0.00021917,4]
[331221045,1720140645776,-500.0,0.00021917,4]
[331221046,1720140645785,-476.26869412,0.00021917,4]
[331221048,1720140645795,-1147.96,0.00021917,4]
[331221050,1720140645804,-1147.96,0.00021917,4]
[331221052,1720140645813,-500.0,0.00021917,4]
[331221054,1720140645823,-1147.96,0.00021917,4]
[331221055,1720140645832,-1147.96,0.00021917,4]
[331221058,1720140645841,-1147.96,0.00021917,4]
[331221060,1720140645851,-1147.96,0.00021917,4]
[331221062,1720140645860,-1147.96,0.00021917,4]
[331221064,1720140645870,-1147.96,0.00021917,4]
[331221066,1720140645879,-1147.96,0.00021917,4]
[331221068,1720140645889,-1147.96,0.00021917,4]
[331221070,1720140645898,-1147.96,0.00021917,4]
[331221072,1720140645907,-500.0,0.00021917,4]
[331221074,1720140645917,-1147.96,0.00021917,4]
[331221076,1720140645926,-1147.96,0.00021917,4]
[331221077,1720140645940,-1147.96,0.00021917,4]
[331221079,1720140645950,-1147.96,0.00021917,4]
[331221081,1720140645959,-1147.96,0.00021917,4]
[331221083,1720140645969,-500.0,0.00021917,4]
[331221085,1720140645978,-246.70397017,0.00021917,4]
[331221087,1720140645987,-500.0,0.00021917,4]
[331221089,1720140645998,-221.01884499,0.00021917,4]
[331221091,1720140646007,-891.73,0.00021917,4]
[331221093,1720140646018,-500.0,0.00021917,4]
[331221095,1720140646028,-891.73,0.00021917,4]
[331221097,1720140646038,-891.73,0.00021917,4]
[331221100,1720140646048,-891.73,0.00021917,4]
[331221101,1720140646058,-891.73,0.00021917,4]
[331221106,1720140646067,-500.0,0.00021917,4]
[331221109,1720140646077,-891.73,0.00021917,4]
[331221114,1720140646087,-891.73,0.00021917,4]
[331221119,1720140646096,-891.73,0.00021917,4]
[331221124,1720140646105,-891.73,0.00021917,4]
[331221129,1720140646115,-891.73,0.00021917,4]